[Event "Early-Titled-Tuesday-Blitz-February-06-2024"]
[Site "Chess.com"]
[Date "2024.02.06"]
[Round "7"]
[White "Matols"]
[Black "bylavochka"]
[Result "0-1"]
[WhiteElo "2391"]
[BlackElo "2305"]
[TimeControl "180+1"]
[EndTime "9:15:39 PST"]
[Termination "bylavochka won by resignation"]

1. d4 {[%clk 0:03:00.9]} 1... Nf6 {[%clk 0:03:00.1]} 2. c4 {[%clk 0:03:00.4]}
2... g6 {[%clk 0:03:00.1]} 3. g3 {[%clk 0:03:01]} 3... Bg7 {[%clk 0:03:00.4]} 4.
Bg2 {[%clk 0:03:01.7]} 4... O-O {[%clk 0:03:01]} 5. Nc3 {[%clk 0:03:02.1]} 5...
c6 {[%clk 0:03:00.7]} 6. Nf3 {[%clk 0:03:00.5]} 6... d5 {[%clk 0:03:00.8]} 7. b3
{[%clk 0:03:00]} 7... Nbd7 {[%clk 0:02:54.7]} 8. O-O {[%clk 0:02:59]} 8... Nb6
{[%clk 0:02:54.5]} 9. Nd2 {[%clk 0:02:51.5]} 9... dxc4 {[%clk 0:02:53.3]} 10.
Nxc4 {[%clk 0:02:50.6]} 10... Nbd5 {[%clk 0:02:50.7]} 11. Bb2 {[%clk 0:02:47.7]}
11... Nxc3 {[%clk 0:02:48]} 12. Bxc3 {[%clk 0:02:48.6]} 12... Bf5 {[%clk
0:02:34.3]} 13. f3 {[%clk 0:02:31.8]} 13... Nd5 {[%clk 0:02:24.6]} 14. e4 {[%clk
0:02:30.2]} 14... Nxc3 {[%clk 0:02:24.4]} 15. Qc2 {[%clk 0:02:28.7]} 15... Bxd4+
{[%clk 0:02:20.2]} 16. Kh1 {[%clk 0:02:27.9]} 16... Be6 {[%clk 0:02:20.4]} 17.
f4 {[%clk 0:02:20]} 17... Bxc4 {[%clk 0:02:15.1]} 18. bxc4 {[%clk 0:02:20.9]}
18... e5 {[%clk 0:02:07.1]} 19. f5 {[%clk 0:02:20.1]} 19... Qg5 {[%clk
0:01:56.8]} 20. f6 {[%clk 0:02:18.6]} 20... Rfd8 {[%clk 0:01:50.3]} 21. Rf3
{[%clk 0:02:14]} 21... Nxe4 {[%clk 0:01:42.9]} 22. Re1 {[%clk 0:02:11.8]} 22...
Nxf6 {[%clk 0:01:40.4]} 23. Ref1 {[%clk 0:02:09.6]} 23... Rd6 {[%clk 0:01:36.7]}
24. h4 {[%clk 0:02:06.3]} 24... Qg4 {[%clk 0:01:23.1]} 25. Rxf6 {[%clk
0:02:05.5]} 25... Rxf6 {[%clk 0:01:22.7]} 26. Rxf6 {[%clk 0:02:06.4]} 26... Qxg3
{[%clk 0:01:22.6]} 27. Qe4 {[%clk 0:02:01.8]} 27... Rd8 {[%clk 0:01:16.7]} 28.
h5 {[%clk 0:01:59.8]} 28... Qg5 {[%clk 0:01:07.6]} 29. Rf3 {[%clk 0:01:37.6]}
29... f5 {[%clk 0:00:59.9]} 30. Qc2 {[%clk 0:01:35.8]} 30... Qh4+ {[%clk
0:00:56.6]} 31. Rh3 {[%clk 0:01:35.6]} 31... Qe1+ {[%clk 0:00:56.2]} 32. Kh2
{[%clk 0:01:35.7]} 32... Bg1+ {[%clk 0:00:51.2]} 33. Kh1 {[%clk 0:01:34.1]}
33... Bf2+ {[%clk 0:00:50.8]} 0-1

[Event "Early-Titled-Tuesday-Blitz-February-06-2024"]
[Site "Chess.com"]
[Date "2024.02.06"]
[Round "7"]
[White "ri4mi"]
[Black "AlexTruskavetsky"]
[Result "0-1"]
[WhiteElo "2554"]
[BlackElo "2725"]
[TimeControl "180+1"]
[EndTime "9:15:45 PST"]
[Termination "AlexTruskavetsky won by resignation"]

1. e4 {[%clk 0:02:27.2]} 1... c5 {[%clk 0:02:59.8]} 2. Nc3 {[%clk 0:02:27.1]}
2... e6 {[%clk 0:02:57.4]} 3. d4 {[%clk 0:02:26.1]} 3... cxd4 {[%clk 0:02:57.7]}
4. Qxd4 {[%clk 0:02:27]} 4... Nc6 {[%clk 0:02:57.9]} 5. Qd3 {[%clk 0:02:27]}
5... Nf6 {[%clk 0:02:58.2]} 6. b3 {[%clk 0:02:26.9]} 6... Bb4 {[%clk 0:02:58.5]}
7. Bb2 {[%clk 0:02:26.7]} 7... d5 {[%clk 0:02:58.5]} 8. exd5 {[%clk 0:02:27.6]}
8... exd5 {[%clk 0:02:59.4]} 9. O-O-O {[%clk 0:02:27.7]} 9... Be6 {[%clk
0:03:00]} 10. f3 {[%clk 0:02:18.5]} 10... O-O {[%clk 0:03:00]} 11. g4 {[%clk
0:02:18.4]} 11... d4 {[%clk 0:02:46.7]} 12. Nce2 {[%clk 0:02:11]} 12... Qb6
{[%clk 0:02:46.5]} 13. Nxd4 {[%clk 0:02:05.5]} 13... Rad8 {[%clk 0:02:46.8]} 14.
Nge2 {[%clk 0:02:04.5]} 14... Bc5 {[%clk 0:02:40.6]} 15. Kb1 {[%clk 0:01:50.3]}
15... Rd7 {[%clk 0:02:40.8]} 16. Bg2 {[%clk 0:01:43.2]} 16... Rfd8 {[%clk
0:02:40.9]} 17. c3 {[%clk 0:01:43.8]} 17... Bxd4 {[%clk 0:02:32.6]} 18. Nxd4
{[%clk 0:01:34.8]} 18... Nxd4 {[%clk 0:02:32.4]} 19. cxd4 {[%clk 0:01:33.5]}
19... Nd5 {[%clk 0:02:32.8]} 20. Qd2 {[%clk 0:01:24.3]} 20... Nb4 {[%clk
0:02:33.1]} 21. Rhe1 {[%clk 0:00:54.1]} 21... a5 {[%clk 0:02:19.8]} 22. Re3
{[%clk 0:00:45.8]} 22... a4 {[%clk 0:02:18.5]} 23. a3 {[%clk 0:00:36.9]} 23...
Nd5 {[%clk 0:02:17.1]} 24. b4 {[%clk 0:00:20.2]} 24... Nxe3 {[%clk 0:02:17.1]}
25. Qxe3 {[%clk 0:00:21.1]} 25... Qc6 {[%clk 0:02:16.4]} 26. Rc1 {[%clk
0:00:18.6]} 26... Qd5 {[%clk 0:02:16.4]} 27. Rc5 {[%clk 0:00:18.6]} 27... Qa2+
{[%clk 0:02:16.7]} 28. Kc2 {[%clk 0:00:19.2]} 28... b6 {[%clk 0:02:17.3]} 29.
Rc3 {[%clk 0:00:17.8]} 29... Rxd4 {[%clk 0:02:16.2]} 30. Rc7 {[%clk 0:00:02.1]}
30... Rd2+ {[%clk 0:02:09.4]} 0-1

[Event "Early-Titled-Tuesday-Blitz-February-06-2024"]
[Site "Chess.com"]
[Date "2024.02.06"]
[Round "7"]
[White "Gennady_Kozlov"]
[Black "Adekrisna123"]
[Result "1-0"]
[WhiteElo "2714"]
[BlackElo "2543"]
[TimeControl "180+1"]
[EndTime "9:15:50 PST"]
[Termination "Gennady_Kozlov won by resignation"]

1. b3 {[%clk 0:02:59.3]} 1... e5 {[%clk 0:02:57.9]} 2. Bb2 {[%clk 0:02:59.2]}
2... Nc6 {[%clk 0:02:57.5]} 3. e3 {[%clk 0:02:58.7]} 3... g6 {[%clk 0:02:56.2]}
4. f4 {[%clk 0:02:58.2]} 4... Bg7 {[%clk 0:02:55.4]} 5. Nf3 {[%clk 0:02:57.9]}
5... d6 {[%clk 0:02:53.8]} 6. Bb5 {[%clk 0:02:57.4]} 6... Bd7 {[%clk 0:02:53]}
7. O-O {[%clk 0:02:56]} 7... Qe7 {[%clk 0:02:38.1]} 8. Nc3 {[%clk 0:02:54.5]}
8... Nf6 {[%clk 0:02:36.3]} 9. d4 {[%clk 0:02:52]} 9... e4 {[%clk 0:02:31.6]}
10. Nd2 {[%clk 0:02:50]} 10... d5 {[%clk 0:02:31.6]} 11. Na4 {[%clk 0:02:44.9]}
11... a6 {[%clk 0:02:22.9]} 12. Bxc6 {[%clk 0:02:44.2]} 12... Bxc6 {[%clk
0:02:22.6]} 13. c4 {[%clk 0:02:43.7]} 13... Bxa4 {[%clk 0:02:17.2]} 14. bxa4
{[%clk 0:02:43.1]} 14... dxc4 {[%clk 0:01:56.5]} 15. Nxc4 {[%clk 0:02:44]} 15...
Nd5 {[%clk 0:01:53.4]} 16. Ba3 {[%clk 0:02:42.3]} 16... Qe6 {[%clk 0:01:49]} 17.
Qb3 {[%clk 0:02:35.3]} 17... b6 {[%clk 0:01:27.9]} 18. Rac1 {[%clk 0:02:32.8]}
18... f5 {[%clk 0:01:23.5]} 19. Rc2 {[%clk 0:02:30.7]} 19... Kf7 {[%clk
0:01:23.2]} 20. Rfc1 {[%clk 0:02:30.5]} 20... Rac8 {[%clk 0:01:11]} 21. Ne5+
{[%clk 0:02:29.5]} 21... Bxe5 {[%clk 0:01:10.4]} 22. fxe5 {[%clk 0:02:29.7]}
22... c6 {[%clk 0:01:00.5]} 23. Bd6 {[%clk 0:02:24]} 23... f4 {[%clk 0:00:34.9]}
24. exf4 {[%clk 0:02:19.5]} 24... Nxf4 {[%clk 0:00:34.4]} 25. Rf1 {[%clk
0:02:16.7]} 25... g5 {[%clk 0:00:34.1]} 26. g3 {[%clk 0:02:15.7]} 26... Qxb3
{[%clk 0:00:30.7]} 27. axb3 {[%clk 0:02:14.8]} 27... Rhg8 {[%clk 0:00:30.9]} 28.
Kh1 {[%clk 0:02:13.5]} 28... Ke6 {[%clk 0:00:24]} 29. gxf4 {[%clk 0:02:13.2]}
29... gxf4 {[%clk 0:00:23.9]} 30. Rxf4 {[%clk 0:02:13.7]} 30... Kd5 {[%clk
0:00:22.2]} 31. Re2 {[%clk 0:02:09.4]} 31... Rg6 {[%clk 0:00:16]} 32. Rfxe4
{[%clk 0:02:08.8]} 32... Rcg8 {[%clk 0:00:16.8]} 33. Re1 {[%clk 0:02:08.6]}
33... Rg2 {[%clk 0:00:17]} 34. e6 {[%clk 0:02:05.9]} 34... Kxd6 {[%clk
0:00:16.4]} 35. e7 {[%clk 0:02:05.8]} 1-0

[Event "Early-Titled-Tuesday-Blitz-February-06-2024"]
[Site "Chess.com"]
[Date "2024.02.06"]
[Round "7"]
[White "frequentblunders"]
[Black "emeli_chess"]
[Result "0-1"]
[WhiteElo "2172"]
[BlackElo "2413"]
[TimeControl "180+1"]
[EndTime "9:15:50 PST"]
[Termination "emeli_chess won by resignation"]

1. d3 {[%clk 0:02:58.6]} 1... d5 {[%clk 0:02:58]} 2. f4 {[%clk 0:02:49.6]} 2...
e5 {[%clk 0:02:54]} 3. fxe5 {[%clk 0:02:33]} 3... Nc6 {[%clk 0:02:53.9]} 4. Nf3
{[%clk 0:02:23.9]} 4... Bg4 {[%clk 0:02:53.5]} 5. Bf4 {[%clk 0:02:20.5]} 5... f6
{[%clk 0:02:45.7]} 6. exf6 {[%clk 0:02:13.5]} 6... Nxf6 {[%clk 0:02:45.6]} 7.
Nbd2 {[%clk 0:01:46.4]} 7... Bd6 {[%clk 0:02:43.8]} 8. Bxd6 {[%clk 0:01:03.3]}
8... Qxd6 {[%clk 0:02:43.6]} 9. e4 {[%clk 0:01:03.6]} 9... O-O-O {[%clk
0:02:31.6]} 10. Be2 {[%clk 0:00:56.5]} 10... dxe4 {[%clk 0:02:25.4]} 11. Nxe4
{[%clk 0:00:29.1]} 11... Nxe4 {[%clk 0:02:22.7]} 12. dxe4 {[%clk 0:00:30]} 12...
Qb4+ {[%clk 0:02:14.4]} 13. Nd2 {[%clk 0:00:24.4]} 13... Bxe2 {[%clk 0:01:56.5]}
14. Qxe2 {[%clk 0:00:25.3]} 14... Qxb2 {[%clk 0:01:20.4]} 15. O-O {[%clk
0:00:24.8]} 15... Qd4+ {[%clk 0:01:19.5]} 16. Rf2 {[%clk 0:00:25.1]} 16... Rhf8
{[%clk 0:01:15.3]} 17. Nf3 {[%clk 0:00:24.6]} 17... Qxa1+ {[%clk 0:01:13.8]} 0-1

[Event "Early-Titled-Tuesday-Blitz-February-06-2024"]
[Site "Chess.com"]
[Date "2024.02.06"]
[Round "7"]
[White "VinzentSpitzl"]
[Black "Flawless_Fighter"]
[Result "1-0"]
[WhiteElo "2471"]
[BlackElo "2712"]
[TimeControl "180+1"]
[EndTime "9:15:51 PST"]
[Termination "VinzentSpitzl won by resignation"]

1. e4 {[%clk 0:02:59.9]} 1... c5 {[%clk 0:02:59.9]} 2. Nf3 {[%clk 0:03:00.3]}
2... Nc6 {[%clk 0:03:00.3]} 3. d4 {[%clk 0:03:00.9]} 3... cxd4 {[%clk
0:03:01.2]} 4. Nxd4 {[%clk 0:03:01.8]} 4... e5 {[%clk 0:03:02]} 5. Nb5 {[%clk
0:03:02]} 5... d6 {[%clk 0:03:02.6]} 6. c4 {[%clk 0:03:02.5]} 6... g6 {[%clk
0:03:00.8]} 7. N1c3 {[%clk 0:03:01.5]} 7... a6 {[%clk 0:03:01.2]} 8. Na3 {[%clk
0:03:01.9]} 8... Be6 {[%clk 0:03:01.6]} 9. Be2 {[%clk 0:03:02]} 9... Bg7 {[%clk
0:03:01.8]} 10. Be3 {[%clk 0:02:59.8]} 10... Nf6 {[%clk 0:03:02.2]} 11. Nc2
{[%clk 0:02:58.7]} 11... Rc8 {[%clk 0:03:02.7]} 12. Qd2 {[%clk 0:02:56]} 12...
O-O {[%clk 0:02:40.3]} 13. O-O {[%clk 0:02:55.9]} 13... b5 {[%clk 0:02:25.3]}
14. cxb5 {[%clk 0:02:46.3]} 14... axb5 {[%clk 0:02:25]} 15. Bxb5 {[%clk
0:02:46]} 15... d5 {[%clk 0:02:24]} 16. exd5 {[%clk 0:02:18.6]} 16... Nxd5
{[%clk 0:02:23.5]} 17. Nxd5 {[%clk 0:02:09.8]} 17... Qxd5 {[%clk 0:01:59.6]} 18.
Qxd5 {[%clk 0:02:09.5]} 18... Bxd5 {[%clk 0:02:00.5]} 19. Rfd1 {[%clk 0:02:04]}
19... Be6 {[%clk 0:01:57]} 20. Bc5 {[%clk 0:01:39.3]} 20... Rfd8 {[%clk
0:01:55.6]} 21. Bxc6 {[%clk 0:01:23.9]} 21... Rxd1+ {[%clk 0:01:50.7]} 22. Rxd1
{[%clk 0:01:23.8]} 22... Bf6 {[%clk 0:01:50.9]} 23. Nb4 {[%clk 0:01:15.2]} 23...
e4 {[%clk 0:01:40]} 24. Bd4 {[%clk 0:00:55.3]} 24... Rd8 {[%clk 0:01:34.3]} 25.
Bd5 {[%clk 0:00:51.6]} 25... Be7 {[%clk 0:01:27.2]} 26. Bxe6 {[%clk 0:00:43.4]}
26... fxe6 {[%clk 0:01:22.7]} 27. Nc6 {[%clk 0:00:42.7]} 1-0

[Event "Early-Titled-Tuesday-Blitz-February-06-2024"]
[Site "Chess.com"]
[Date "2024.02.06"]
[Round "7"]
[White "Mops_2004"]
[Black "nikitadovbnya2008"]
[Result "1-0"]
[WhiteElo "2677"]
[BlackElo "2293"]
[TimeControl "180+1"]
[EndTime "9:15:55 PST"]
[Termination "Mops_2004 won by resignation"]

1. f4 {[%clk 0:03:00.9]} 1... e5 {[%clk 0:02:56.7]} 2. fxe5 {[%clk 0:03:00.5]}
2... d6 {[%clk 0:02:56.7]} 3. exd6 {[%clk 0:03:01]} 3... Bxd6 {[%clk 0:02:56.8]}
4. Nf3 {[%clk 0:03:01.6]} 4... g5 {[%clk 0:02:57]} 5. g3 {[%clk 0:03:01.7]} 5...
Nc6 {[%clk 0:02:55.1]} 6. Nc3 {[%clk 0:02:53]} 6... h5 {[%clk 0:02:45.1]} 7. Ne4
{[%clk 0:02:34]} 7... Be7 {[%clk 0:02:44.8]} 8. Bg2 {[%clk 0:01:41.9]} 8... Bf5
{[%clk 0:02:44.1]} 9. d3 {[%clk 0:01:34.2]} 9... Bxe4 {[%clk 0:02:37.4]} 10.
dxe4 {[%clk 0:01:34.1]} 10... Qxd1+ {[%clk 0:02:38.3]} 11. Kxd1 {[%clk
0:01:34.7]} 11... O-O-O+ {[%clk 0:02:39.2]} 12. Bd2 {[%clk 0:01:31.7]} 12... g4
{[%clk 0:02:38.3]} 13. Ne1 {[%clk 0:01:31.3]} 13... Nf6 {[%clk 0:02:31.4]} 14.
Nd3 {[%clk 0:01:29.8]} 14... Rhe8 {[%clk 0:02:15.8]} 15. Rf1 {[%clk 0:01:24.2]}
15... h4 {[%clk 0:01:54.5]} 16. gxh4 {[%clk 0:01:19.2]} 16... Nd4 {[%clk
0:01:41.2]} 17. c3 {[%clk 0:01:10.3]} 17... Ne6 {[%clk 0:01:40.9]} 18. Kc2
{[%clk 0:01:10.3]} 18... Nh5 {[%clk 0:01:39.9]} 19. Be1 {[%clk 0:01:01.4]} 19...
Bd6 {[%clk 0:01:36.2]} 20. e5 {[%clk 0:00:57.7]} 20... Bc5 {[%clk 0:01:30.8]}
21. Rxf7 {[%clk 0:00:56.5]} 21... Bg1 {[%clk 0:01:29.1]} 22. Bg3 {[%clk
0:00:51.3]} 22... Nxg3 {[%clk 0:01:28.7]} 23. Rxg1 {[%clk 0:00:46.7]} 23... Nxe2
{[%clk 0:01:28.5]} 24. Re1 {[%clk 0:00:46.5]} 24... Rxd3 {[%clk 0:01:22.6]} 25.
Rxe2 {[%clk 0:00:37.3]} 25... Red8 {[%clk 0:01:17.3]} 26. Be4 {[%clk 0:00:35.5]}
26... Rd1 {[%clk 0:01:16.1]} 27. Bf5 {[%clk 0:00:35.1]} 1-0

[Event "Early-Titled-Tuesday-Blitz-February-06-2024"]
[Site "Chess.com"]
[Date "2024.02.06"]
[Round "7"]
[White "mkllnd1517"]
[Black "ArturoCaceres"]
[Result "1-0"]
[WhiteElo "2360"]
[BlackElo "2483"]
[TimeControl "180+1"]
[EndTime "9:15:55 PST"]
[Termination "mkllnd1517 won by resignation"]

1. Nf3 {[%clk 0:03:00.9]} 1... Nf6 {[%clk 0:02:45.9]} 2. b3 {[%clk 0:03:01]}
2... b6 {[%clk 0:02:45.7]} 3. Bb2 {[%clk 0:02:59.1]} 3... Bb7 {[%clk 0:02:46.6]}
4. e3 {[%clk 0:02:59.4]} 4... e6 {[%clk 0:02:47]} 5. c4 {[%clk 0:02:59.6]} 5...
Be7 {[%clk 0:02:47.5]} 6. Nc3 {[%clk 0:02:59.8]} 6... c5 {[%clk 0:02:47.5]} 7.
d4 {[%clk 0:03:00]} 7... cxd4 {[%clk 0:02:47.7]} 8. exd4 {[%clk 0:03:00.3]} 8...
d5 {[%clk 0:02:48.3]} 9. Bd3 {[%clk 0:02:42.4]} 9... O-O {[%clk 0:02:47.8]} 10.
O-O {[%clk 0:02:42.8]} 10... Nc6 {[%clk 0:02:48.3]} 11. Rc1 {[%clk 0:02:35.1]}
11... Rc8 {[%clk 0:02:48.2]} 12. Re1 {[%clk 0:02:35.4]} 12... dxc4 {[%clk
0:02:47.1]} 13. bxc4 {[%clk 0:02:33.9]} 13... Nb4 {[%clk 0:02:47.8]} 14. Be2
{[%clk 0:02:28.2]} 14... Ba6 {[%clk 0:02:42.1]} 15. Ne5 {[%clk 0:02:27]} 15...
Nc6 {[%clk 0:02:41.1]} 16. Nxc6 {[%clk 0:02:11.6]} 16... Rxc6 {[%clk 0:02:40.3]}
17. d5 {[%clk 0:02:11.6]} 17... exd5 {[%clk 0:02:38]} 18. cxd5 {[%clk
0:02:11.6]} 18... Bxe2 {[%clk 0:02:35.8]} 19. Qxe2 {[%clk 0:02:11.4]} 19... Rc7
{[%clk 0:02:34]} 20. Rcd1 {[%clk 0:01:56.2]} 20... Rd7 {[%clk 0:02:33.6]} 21.
Ne4 {[%clk 0:01:45.7]} 21... Nxe4 {[%clk 0:02:32.7]} 22. Qxe4 {[%clk 0:01:46.6]}
22... Bf6 {[%clk 0:02:32.4]} 23. Ba3 {[%clk 0:01:43.3]} 23... Rd6 {[%clk
0:02:32.6]} 24. Bxd6 {[%clk 0:01:34.6]} 24... Qxd6 {[%clk 0:02:29.2]} 25. Qc4
{[%clk 0:01:35.1]} 25... Be5 {[%clk 0:02:22]} 26. h3 {[%clk 0:01:30.8]} 26...
Bf6 {[%clk 0:02:13.1]} 27. Qc6 {[%clk 0:01:27.2]} 27... Qf4 {[%clk 0:02:09.8]}
28. d6 {[%clk 0:01:09.8]} 28... Bd4 {[%clk 0:02:05.4]} 29. Re2 {[%clk 0:00:53]}
29... Qf6 {[%clk 0:01:32.8]} 30. Qd5 {[%clk 0:00:48.6]} 30... Bc5 {[%clk
0:01:16.7]} 31. d7 {[%clk 0:00:48.7]} 31... Be7 {[%clk 0:01:16.3]} 32. Rxe7
{[%clk 0:00:49.3]} 32... Qxe7 {[%clk 0:01:15.3]} 33. d8=Q {[%clk 0:00:49.8]} 1-0

[Event "Early-Titled-Tuesday-Blitz-February-06-2024"]
[Site "Chess.com"]
[Date "2024.02.06"]
[Round "7"]
[White "Kazan28"]
[Black "GelmanAlexander"]
[Result "0-1"]
[WhiteElo "2602"]
[BlackElo "2785"]
[TimeControl "180+1"]
[EndTime "9:15:58 PST"]
[Termination "GelmanAlexander won by resignation"]

1. d4 {[%clk 0:03:00.9]} 1... Nf6 {[%clk 0:02:59.1]} 2. Nf3 {[%clk 0:03:01.1]}
2... c5 {[%clk 0:02:59.4]} 3. d5 {[%clk 0:03:00.7]} 3... e6 {[%clk 0:02:59.7]}
4. Nc3 {[%clk 0:03:00.5]} 4... b5 {[%clk 0:02:59.4]} 5. dxe6 {[%clk 0:02:47.8]}
5... fxe6 {[%clk 0:02:59.3]} 6. Nxb5 {[%clk 0:02:46.3]} 6... d5 {[%clk
0:02:59.6]} 7. Nc3 {[%clk 0:02:37.1]} 7... Bb7 {[%clk 0:02:46.1]} 8. e4 {[%clk
0:02:36.4]} 8... d4 {[%clk 0:02:41.7]} 9. Bb5+ {[%clk 0:02:36.7]} 9... Nbd7
{[%clk 0:02:38.8]} 10. Ne5 {[%clk 0:02:36.8]} 10... dxc3 {[%clk 0:02:04.1]} 11.
Bxd7+ {[%clk 0:02:34.8]} 11... Nxd7 {[%clk 0:01:37.9]} 12. Qh5+ {[%clk
0:02:32.2]} 12... g6 {[%clk 0:01:28.2]} 13. Nxg6 {[%clk 0:02:31]} 13... Nf6
{[%clk 0:01:22.9]} 14. Qh3 {[%clk 0:02:25]} 14... hxg6 {[%clk 0:01:00.7]} 15.
Qxh8 {[%clk 0:02:25.9]} 15... cxb2 {[%clk 0:00:52.8]} 16. Bxb2 {[%clk
0:02:23.5]} 16... Qa5+ {[%clk 0:00:53.1]} 17. Kf1 {[%clk 0:02:21.3]} 17... Nxe4
{[%clk 0:00:52.3]} 18. Bg7 {[%clk 0:02:16]} 18... O-O-O {[%clk 0:00:43]} 19.
Bxf8 {[%clk 0:02:13.2]} 19... Qd2 {[%clk 0:00:32.2]} 20. Qh4 {[%clk 0:01:06.2]}
20... Ba6+ {[%clk 0:00:27.8]} 21. c4 {[%clk 0:01:04.3]} 21... Bxc4+ {[%clk
0:00:27.6]} 0-1

[Event "Early-Titled-Tuesday-Blitz-February-06-2024"]
[Site "Chess.com"]
[Date "2024.02.06"]
[Round "7"]
[White "Elsa167"]
[Black "chegueps"]
[Result "1-0"]
[WhiteElo "2874"]
[BlackElo "2646"]
[TimeControl "180+1"]
[EndTime "9:16:03 PST"]
[Termination "Elsa167 won by resignation"]

1. e4 {[%clk 0:03:00.9]} 1... Nf6 {[%clk 0:02:54.8]} 2. d3 {[%clk 0:02:53.2]}
2... d5 {[%clk 0:02:53.9]} 3. e5 {[%clk 0:02:52.7]} 3... Nfd7 {[%clk 0:02:54.5]}
4. f4 {[%clk 0:02:53.2]} 4... c5 {[%clk 0:02:55]} 5. Nf3 {[%clk 0:02:53.7]} 5...
Nc6 {[%clk 0:02:55.3]} 6. g3 {[%clk 0:02:54.2]} 6... e6 {[%clk 0:02:55.5]} 7.
Bg2 {[%clk 0:02:54.8]} 7... Be7 {[%clk 0:02:55.8]} 8. O-O {[%clk 0:02:55.1]}
8... O-O {[%clk 0:02:56.4]} 9. c4 {[%clk 0:02:54.7]} 9... b5 {[%clk 0:02:43.4]}
10. cxd5 {[%clk 0:02:04.4]} 10... exd5 {[%clk 0:02:44]} 11. Nc3 {[%clk
0:02:05.1]} 11... Nb6 {[%clk 0:02:41.5]} 12. Nxb5 {[%clk 0:02:05.4]} 12... Bf5
{[%clk 0:02:36.2]} 13. h3 {[%clk 0:01:55.5]} 13... Nb4 {[%clk 0:02:31.8]} 14.
Ne1 {[%clk 0:01:55.5]} 14... c4 {[%clk 0:02:32.4]} 15. dxc4 {[%clk 0:01:44.1]}
15... Nxc4 {[%clk 0:02:33.3]} 16. Nd4 {[%clk 0:01:32.2]} 16... Be4 {[%clk
0:02:32.4]} 17. b3 {[%clk 0:01:28.7]} 17... Nb6 {[%clk 0:01:38.7]} 18. a3 {[%clk
0:01:28.8]} 18... Na6 {[%clk 0:01:32.2]} 19. Bb2 {[%clk 0:01:05.7]} 19... Nc5
{[%clk 0:01:28]} 20. f5 {[%clk 0:01:05.9]} 20... Bg5 {[%clk 0:01:26.5]} 21. Kh2
{[%clk 0:00:57.5]} 21... Rc8 {[%clk 0:01:25.5]} 22. Qg4 {[%clk 0:00:55.4]} 22...
Bxg2 {[%clk 0:01:23.5]} 23. Kxg2 {[%clk 0:00:51.3]} 23... Bd2 {[%clk 0:01:18.7]}
24. f6 {[%clk 0:00:48.4]} 24... g6 {[%clk 0:01:18]} 25. Rd1 {[%clk 0:00:43.2]}
25... Be3 {[%clk 0:01:02.7]} 26. Nf5 {[%clk 0:00:41.6]} 26... h6 {[%clk
0:00:56.8]} 27. Nxe3 {[%clk 0:00:41.2]} 1-0

[Event "Early-Titled-Tuesday-Blitz-February-06-2024"]
[Site "Chess.com"]
[Date "2024.02.06"]
[Round "7"]
[White "eightbyeightchess"]
[Black "viktorgen2021"]
[Result "1-0"]
[WhiteElo "2377"]
[BlackElo "2541"]
[TimeControl "180+1"]
[EndTime "9:16:03 PST"]
[Termination "eightbyeightchess won by resignation"]

1. e4 {[%clk 0:02:55.4]} 1... g6 {[%clk 0:02:58.8]} 2. c3 {[%clk 0:02:52.7]}
2... Bg7 {[%clk 0:02:58.7]} 3. d4 {[%clk 0:02:53.4]} 3... d6 {[%clk 0:02:59.3]}
4. Bc4 {[%clk 0:02:51]} 4... Nf6 {[%clk 0:02:57.7]} 5. Nd2 {[%clk 0:02:50.8]}
5... d5 {[%clk 0:02:56.4]} 6. exd5 {[%clk 0:02:50.7]} 6... Nxd5 {[%clk 0:02:57]}
7. Ngf3 {[%clk 0:02:48.9]} 7... O-O {[%clk 0:02:54.1]} 8. O-O {[%clk 0:02:49.2]}
8... c5 {[%clk 0:02:52.9]} 9. dxc5 {[%clk 0:02:49.1]} 9... Bf5 {[%clk 0:02:47]}
10. Nd4 {[%clk 0:02:47.1]} 10... Nc6 {[%clk 0:02:37]} 11. Nxf5 {[%clk
0:02:44.9]} 11... gxf5 {[%clk 0:02:37.9]} 12. Bb3 {[%clk 0:02:20.8]} 12... e6
{[%clk 0:02:34.6]} 13. Nc4 {[%clk 0:02:20.9]} 13... Qh4 {[%clk 0:02:30.6]} 14.
Nd6 {[%clk 0:02:17.2]} 14... Rad8 {[%clk 0:02:22.1]} 15. Bxd5 {[%clk 0:02:13.5]}
15... exd5 {[%clk 0:02:16]} 16. Nxf5 {[%clk 0:02:13.9]} 16... Qf6 {[%clk
0:02:10.1]} 17. Qg4 {[%clk 0:02:13.5]} 17... Qg6 {[%clk 0:02:06.6]} 18. Qxg6
{[%clk 0:02:10.4]} 18... hxg6 {[%clk 0:02:07.5]} 19. Nxg7 {[%clk 0:02:10.7]}
19... Kxg7 {[%clk 0:02:08.3]} 20. Bf4 {[%clk 0:02:02.5]} 20... d4 {[%clk
0:01:53.9]} 21. Bd6 {[%clk 0:01:53.8]} 21... Rfe8 {[%clk 0:01:49.6]} 22. cxd4
{[%clk 0:01:52.5]} 22... Nxd4 {[%clk 0:01:41.8]} 23. Rfe1 {[%clk 0:01:50.2]}
23... Nf5 {[%clk 0:01:28.6]} 24. Rxe8 {[%clk 0:01:48]} 24... Rxe8 {[%clk
0:01:04.8]} 25. b4 {[%clk 0:01:45.4]} 25... Re2 {[%clk 0:01:02.4]} 26. a4 {[%clk
0:01:41]} 26... Nxd6 {[%clk 0:00:56.7]} 27. cxd6 {[%clk 0:01:40.9]} 27... Rd2
{[%clk 0:00:57.4]} 28. g3 {[%clk 0:01:39.5]} 28... Rxd6 {[%clk 0:00:50.6]} 29.
Rc1 {[%clk 0:01:39.2]} 29... Rd4 {[%clk 0:00:49.9]} 30. Rb1 {[%clk 0:01:35.8]}
30... f5 {[%clk 0:00:44.3]} 31. Kg2 {[%clk 0:01:34.8]} 31... Kf6 {[%clk
0:00:42.7]} 32. a5 {[%clk 0:01:33.1]} 32... a6 {[%clk 0:00:42.2]} 33. b5 {[%clk
0:01:32.3]} 33... Kg5 {[%clk 0:00:32.5]} 34. bxa6 {[%clk 0:01:31.1]} 34... bxa6
{[%clk 0:00:33.4]} 35. Rb6 {[%clk 0:01:31]} 1-0